{"text_format":"1","workbook":"xlsx","n_sheets":9,"sheets":["Cover sheet","Contact info","Name & Location","Costs","Licenses & Permits","Project layout & Reliability","Environmental considerations","Operation & Maintenance","Sheet1"],"not_rendered":{"charts":0,"images":0,"macros":1,"external_links":0,"defined_names":0,"comments":0,"pivot_tables":0},"unopened":[],"bounds":{"document_bytes":16777216,"sheet_cells":100000,"rows_first":2000,"rows_last":500,"rows_between":2000,"halvings":0,"cell_chars":16384,"cell_head_chars":4096},"cells_cut":0,"cells_raw":0,"read":"whole","date_system":"1900"}

{"sheet":"Cover sheet","index":0,"n_rows":17,"n_cols":2,"rows_kept":17,"cut":false,"hidden":false,"merged":[[23,0,23,6],[1,0,5,6],[0,0,0,6],[16,0,16,6],[17,0,22,6]]}
[]
["The cells below collect the values from the \"Costs\" worksheet.  The total of the columns below will be the price that Evergy will use as the cost to evaluate bids.  The \"Additional\" category is included to allow for any discrepancies that are not captured.   Provide rationale and breakdown of the additional costs in the space provided.  Fill in all dark blue cells below and the 7 other worksheets in this workbook."]
[]
[]
[]
[]
["Project name",{"$f":"'Name & Location'!B3","v":" "}]
["Respondent",{"$f":"'Contact info'!B3","v":" "}]
["Project location",{"$f":"'Name & Location'!B7","v":" "}]
["Nameplate Capacity (MW)"]
["PTC Qualification",{"$f":"Costs!B2","v":0}]
["P50 NCF (%)"]
["Category","Total cost"]
["Acquisition cost",{"$f":"Costs!B4","v":0}]
["Additional"]
["Total cost",{"$f":"SUM(B14:B15)","v":0}]
["Provide rationale for any additional cost"]

{"sheet":"Contact info","index":1,"n_rows":9,"n_cols":2,"rows_kept":9,"cut":false,"hidden":false,"merged":[[1,1,1,10],[7,1,7,10],[6,1,6,10],[8,1,8,10],[4,1,4,10],[5,1,5,10],[2,1,2,10],[3,1,3,10]]}
[]
["General info","Response"]
["Company Name"," "]
["Company address"]
["Bidder contact"]
["Name"]
["Email"]
["Title"]
["Phone number"]

{"sheet":"Name & Location","index":2,"n_rows":35,"n_cols":5,"rows_kept":35,"cut":false,"hidden":false,"merged":[[24,0,27,0],[24,1,27,10],[1,1,1,10],[30,0,30,10],[31,1,31,3],[31,4,31,10],[2,0,5,0],[6,0,9,0],[16,0,19,0],[20,0,23,0],[2,1,5,10],[6,1,9,10],[16,1,19,10],[20,1,23,10],[10,1,10,10],[11,1,11,10],[12,1,12,10],[29,1,29,10],[28,1,28,10],[34,1,34,3],[32,4,32,10],[33,4,33,10],[34,4,34,10],[32,1,32,3],[33,1,33,3],[13,1,13,10],[14,1,14,10],[15,1,15,10]]}
[]
["Name and location","Response"]
["Project name"," "]
[]
[]
[]
["Project location (City, County, State)"," "]
[]
[]
[]
["Original COD"]
["Describe current PTC percentage and number of years remaining on the PTC"]
["Location size (acres)"]
["Describe revenue (market) hedging program in place (if applicable)"]
["Describe current Renewable Energy Credit (REC) ownership situation at this site"]
["Provide details of any current contract for offtake of the energy or RECs contracted with the facility (PPA, VPPA, REC agreement, etc.)"]
["Describe the benefits of the proposed project and reasons for selecting this site"]
[]
[]
[]
["Describe the current land rights.  Include if any of the portion of the land is currently owned"]
[]
[]
[]
["If any of the land is owned provide details on amount of land, current cost and expected cost"]
[]
[]
[]
["Average cost of land currently under lease ($/acre/year)"]
["Average expected annual land escalation cost (%)"]
[]
["Required documents","Select yes if included",null,null,"If no please explain"]
["Map of the site"]
["Copies of contracts with details on leases, easements or option agreements"]
["Copies of general terms for any agreements"]

{"sheet":"Costs","index":3,"n_rows":37,"n_cols":11,"rows_kept":37,"cut":false,"hidden":false,"merged":[]}
[]
["PTC qualification (%)"]
["Estimated useful life (Years)"]
["Acquisition Price",0]
[]
["Revenue and Operating Costs",2017,2018,2019,2020,"2021 (est)","2022 (est)","2023 (est)","2024 (est)","2025 (est)","2026 (est)"]
["Total Annual Revenue ($)",{"$f":"SUM(B8:B12)","v":0},{"$f":"SUM(C8:C12)","v":0},{"$f":"SUM(D8:D12)","v":0},{"$f":"SUM(E8:E12)","v":0},{"$f":"SUM(F8:F12)","v":0}]
["   Energy Revenue ($)"]
["   Ancillary Service Market Revenue ($)"]
["   Congestion Revenue (positive or negative) ($)"]
["   Make Whole Payments (positive or negative) ($)"]
["   Other Revenue ($)"]
[]
["Facility Output (MWh)"]
["O&M Costs ($)"]
["O&M Costs ($/MWh)",{"$f":"IF(B14=0,0,B15/B14)","v":0},0,0,0,0,0,0,0,0,0]
[]
["Labor Costs ($)"]
["Benefits Costs ($)"]
["Materials Costs  ($)"]
["Other Costs  ($)"]
["Total Fixed Costs ($)",{"$f":"SUM(B18:B21)","v":0},{"$f":"SUM(C18:C21)","v":0},{"$f":"SUM(D18:D21)","v":0},0,{"$f":"SUM(F18:F21)","v":0},0,0,0,0,0]
[]
["Permanent Employees (FTE #)"]
["Organized Under Labor Agreement (Y/N)"]
["Contracted Employees (FTE #)"]
["Organized Under Labor Agreement (Y/N)"]
[]
["Property Taxes ($)"]
["State Taxes ($)"]
["Local Taxes ($)"]
["Tax Abatements ($)"]
[]
["Capital Expenditures",2017,2018,2019,2020,"2021 (est)","2022 (est)","2023 (est)","2024 (est)","2025 (est)","2026 (est)"]
["Total Annual Capital Expenditures ($)"]
["Recurring Annual CapEx ($)"]
["CapEx (major 1-time expenses greater than $1M)"]

{"sheet":"Licenses & Permits","index":4,"n_rows":11,"n_cols":9,"rows_kept":11,"cut":false,"hidden":false,"merged":[[0,0,0,14],[6,0,6,14],[7,0,7,4],[7,5,7,7],[7,8,7,14],[1,0,1,4],[1,5,1,14],[2,0,5,4],[2,5,5,14],[8,0,8,4],[8,5,8,7],[8,8,8,14],[10,0,10,4],[10,5,10,7],[10,8,10,14],[9,0,9,4],[9,5,9,7],[9,8,9,14]]}
[]
["License & permits",null,null,null,null,"Response"]
["Provide details on current permitting and any pending permit issues"]
[]
[]
[]
[]
["Required documents",null,null,null,null,"Indicate yes if included",null,null,"If no please explain"]
["Permit documents - including but not limited to supporting studies, surveys, and data"]
["Permit analysis - provide an analysis of all permits required for the project, including but not limited to any state permits, local permits, take permits, wetland permits, storm water permits"]
["Copies of local permits and site agreement documents"]

{"sheet":"Project layout & Reliability","index":5,"n_rows":22,"n_cols":9,"rows_kept":22,"cut":false,"hidden":false,"merged":[[12,5,15,14],[8,0,11,4],[8,5,11,14],[1,0,1,4],[1,5,1,14],[2,0,5,4],[2,5,5,14],[6,0,6,4],[6,5,6,14],[17,5,17,7],[17,8,17,14],[18,0,18,4],[18,5,18,7],[18,8,18,14],[22,0,22,4],[22,5,22,7],[20,5,20,7],[20,8,20,14],[7,0,7,4],[7,5,7,14],[12,0,15,4],[20,0,20,4],[21,5,21,7],[21,8,21,14],[19,0,19,4],[19,5,19,7],[19,8,19,14],[21,0,21,4],[16,0,16,14],[17,0,17,4]]}
[]
["Project layout",null,null,null,null,"Response"]
["Describe the rationale for selecting the layout of the wind farm"]
[]
[]
[]
["Reliability"]
["Current OEM and model of selected wind turbine"]
["Describe the current SCADA system"]
[]
[]
[]
["Summarize the commercial operating experience of the equipment, OEM and any prior experience with the OEM"]
[]
[]
[]
[]
["Required documents",null,null,null,null,"Indicate yes if included",null,null,"If no please explain"]
["Map of wind farm with placement of turbines, transmissions layout other project facilities and point of interconnect noted"]
["Warranty terms on selected equipment"]
["Technical documentation on selected equipment"]
["Technical documentation on the selected SCADA system"]

{"sheet":"Environmental considerations","index":6,"n_rows":30,"n_cols":5,"rows_kept":30,"cut":false,"hidden":false,"merged":[[19,1,19,3],[18,1,18,3],[17,1,17,3],[1,1,1,10],[6,1,9,10],[14,0,14,10],[15,1,15,3],[15,4,15,10],[16,1,16,3],[16,4,16,10],[2,0,5,0],[2,1,5,10],[10,0,13,0],[10,1,13,10],[6,0,9,0],[17,4,17,10],[29,4,29,10],[29,1,29,3],[28,1,28,3],[27,1,27,3],[26,1,26,3],[27,4,27,10],[28,4,28,10],[26,4,26,10],[18,4,18,10],[19,4,19,10],[20,4,20,10],[21,4,21,10],[22,4,22,10],[23,4,23,10],[24,4,24,10],[25,4,25,10],[20,1,20,3],[25,1,25,3],[24,1,24,3],[23,1,23,3],[22,1,22,3],[21,1,21,3]]}
[]
["Environmental considerations","Response"]
["Describe all of the completed environmental studies"]
[]
[]
[]
["Provide an overview of the history and background of the site in regards to environmental issues"]
[]
[]
[]
["Describe mitigation plans for environmental concerns raised from the studies, if any"]
[]
[]
[]
[]
["Required documents","Select yes if included",null,null,"If no please explain"]
["Completed environmental studies"]
["Copies of documents on known or past environmental issues and how the issue was resolved"]
["Tribal Cultural Resources - Copies of assessments or analysis of potential impacts to tribal cultural resources in the area and any communications with local Native American Tribe(s) regarding the project."]
["Cultural Resource Studies - Copies of state historic preservation consultation and literature survey reports for the project."]
["T&E and State Protected Species - Copies of T&E and T&E Critical Habitat surveys completed.  Provide a summary of any T&E species that may require additional follow-up work or mitigation"]
["USFWS Consultation - Copies of all USFWS correspondence to date"]
["State DWP Consultation -  Copies of all State DWP correspondence to date"]
["Department of Agriculture - Provide amount of impacted Prime Farm Land and any correspondence with either federal or state Departments of Agriculture."]
["Army Corps of Engineers - Copies of any 404 jurisdictional determination obtained by the project, if needed."]
["Wetlands - Completed wetland delineation reports"]
["Noise Model -  Copies of any noise modeling report developed for the project if required by federal, state, or local permitting agencies.  If not required, provide justification."]
["Communications Studies - Copies of any microwave beam path and local broadcast interference assessments or studies conducted for the project, if applicable."]
["Vegetation Plan -  Copies of any vegetation and vegetation management plans for the site."]
["Aeronautical Studies - Copies of any information concerning aeronautical assessments or studies (including FAA Study numbers, if available) that have been conducted or initiated for the project."]

{"sheet":"Operation & Maintenance","index":7,"n_rows":13,"n_cols":5,"rows_kept":13,"cut":false,"hidden":false,"merged":[[10,0,10,10],[11,1,11,3],[11,4,11,10],[12,1,12,3],[12,4,12,10],[1,1,1,10],[2,0,5,0],[2,1,5,10],[6,0,9,0],[6,1,9,10]]}
[]
["Operation and maintenance","Response"]
["Describe the current O&M building"]
[]
[]
[]
["Describe the O&M services, packages and contracts that are currently being provided .  Include the O&M cost breakdown along with a description of the services provided"]
[]
[]
[]
[]
["Required documents","Select yes if included",null,null,"If no please explain"]
["Copies of O&M contracts"]

{"sheet":"Sheet1","index":8,"n_rows":10,"n_cols":5,"rows_kept":10,"cut":false,"hidden":true,"merged":[]}
[]
[null,null,null,null,"DISIS-2016-001"]
[null,"Yes",null,null,"DISIS-2016-002"]
[null,"No",null,null,"DISIS-2017-001"]
[null,null,null,null,"DISIS-2017-002"]
[null,null,null,null,"DISIS-2018-001"]
[null,null,null,null,"DISIS-2018-002"]
[null,null,null,null,"DISIS-2019-001"]
[null,null,null,null,"DISIS-2020-001"]
[null,null,null,null,"DISIS-2021-001"]